bitfinex/quotes_ETHUSD_20240711
["timestamp","ask_amount","ask_price","bid_price","bid_amount"]
[1720707079078,3.14348,3181.2,3180.2,3.27260061]
[1720707079252,3.14367,3181.0,3180.2,0.12823061]
[1720707079459,3.14386,3180.8,3180.2,0.12823061]
[1720707079663,3.14383,3180.9,3180.2,0.12823061]
[1720707079861,3.14401,3180.7,3179.9,2.3326]
[1720707080151,3.14406,3180.6,3180.3,0.12822694]
[1720707080356,3.14406,3180.6,3179.9,2.3326]
[1720707080571,3.14418,3180.5,3179.9,2.3326]
[1720707080887,3.14441,3180.3,3179.9,2.3326]
[1720707081045,3.14448,3180.2,3179.9,2.3326]
[1720707081582,3.14448,3180.2,3180.0,0.12824044]
[1720707082080,3.14455,3180.1,3180.0,0.12824044]
[1720707082282,3.14455,3180.1,3179.5,2.4386]
[1720707082446,3.773453,3180.1,3180.0,0.12824044]
[1720707082644,3.773453,3180.1,3179.5,2.4386]
[1720707083071,3.773453,3180.1,3179.6,0.12825512]
[1720707083649,3.14465,3180.0,3179.6,0.12825512]
[1720707084086,0.628903,3180.1,3179.6,0.12825512]
[1720707084287,3.1443,3180.4,3179.6,0.12825512]
[1720707084288,3.79767912,3180.4,3179.6,0.12825512]
[1720707084469,0.98006868,3180.5,3179.6,0.12825512]
[1720707084470,0.65337912,3180.5,3179.6,3.27326512]
[1720707084671,0.65337912,3180.6,3179.8,3.14483]
[1720707084891,0.65337912,3180.7,3180.0,3.14459]
[1720707085063,3.14402,3180.7,3179.9,5.95284711]
[1720707085267,3.79739912,3180.7,3180.1,0.12823677]
[1720707085483,3.14421,3180.5,3180.0,0.12824044]
[1720707085658,0.65337912,3180.4,3180.2,0.1282331]
[1720707085973,3.14426,3180.4,3180.1,0.12823677]
[1720707086163,3.79763912,3180.4,3179.9,2.3654]
[1720707086493,3.79774912,3180.3,3179.9,2.3654]
[1720707086690,3.79774912,3180.3,3180.0,0.12824044]
[1720707086991,0.65337912,3180.4,3180.0,0.12824044]
[1720707087175,3.79766912,3180.4,3180.0,0.12824044]
[1720707087385,0.65337912,3180.3,3180.0,0.12824044]
[1720707087904,0.65337912,3180.4,3180.0,0.12824044]
[1720707088072,0.65595798,3180.5,3180.0,0.12824044]
[1720707088614,3.80017798,3180.5,3180.0,0.12824044]
[1720707088808,0.65595798,3180.3,3180.0,0.12824044]
[1720707088962,0.7928175,3180.4,3180.0,0.12824044]
[1720707088963,0.65595798,3180.2,3180.0,0.12824044]
[1720707089369,1.74496501,3180.1,3179.5,3.14508]
[1720707089565,0.65595798,3180.0,3179.5,3.14508]
[1720707089797,3.80058798,3180.1,3179.6,0.12827008]
[1720707089997,0.65595798,3179.9,3179.6,0.12827008]
[1720707090201,0.65595798,3179.9,3179.3,2.3243]
[1720707090202,0.65595798,3179.8,3179.3,2.3243]
[1720707090406,0.65595798,3179.8,3179.7,0.12826641]
[1720707090587,0.65595798,3179.8,3179.3,2.3243]
[1720707091055,0.65595798,3179.6,3179.4,0.12827742]
[1720707091479,0.65576555,3179.5,3179.3,2.3243]
[1720707092113,0.65576555,3179.6,3179.3,2.3243]
[1720707092613,1.74496081,3179.5,3179.3,2.3243]
[1720707092801,0.65576555,3179.5,3179.3,2.3243]
[1720707092995,1.46211483,3179.7,3179.3,2.3243]
[1720707092996,0.65576555,3179.6,3179.3,2.3243]
[1720707093198,1.74493652,3179.5,3179.3,2.3243]
[1720707093427,0.65576555,3179.5,3179.3,2.3243]
[1720707094283,1.08917258,3179.4,3179.3,2.3243]
[1720707094643,1.08917258,3179.4,3179.0,1e-08]
[1720707094644,1.08918998,3179.4,3179.0,1e-08]
[1720707094779,1.08918998,3179.3,3179.0,1e-08]
[1720707094980,0.65576555,3179.4,3179.0,1e-08]
[1720707095328,3.14515,3179.5,3179.0,1e-08]
[1720707095329,0.65576555,3179.5,3179.0,1e-08]
[1720707095533,0.65576555,3179.6,3179.0,1e-08]
[1720707095732,1.08916134,3179.5,3179.0,1e-08]
[1720707095890,0.65576555,3179.5,3179.0,1e-08]
[1720707096208,1.08917968,3179.4,3179.0,1e-08]
[1720707096411,0.65576555,3179.5,3179.0,1e-08]
[1720707096611,1.08917407,3179.4,3179.0,1e-08]
[1720707096817,0.65576555,3179.6,3179.0,1e-08]
[1720707097030,1.7449057,3179.5,3179.0,1e-08]
[1720707097205,1.08914015,3179.4,3179.0,1e-08]
[1720707097392,0.65576555,3179.5,3179.0,1e-08]
[1720707097592,1.74493255,3179.4,3179.0,1e-08]
[1720707097790,4.12870833,3179.6,3179.0,1e-08]
[1720707097791,1.08921507,3179.3,3179.0,1e-08]
[1720707098124,0.6559302,3179.3,3179.0,1e-08]
[1720707098438,0.6559302,3179.1,3179.0,1e-08]
[1720707098738,1.74520555,3179.1,3179.0,1e-08]
[1720707098887,1.08927535,3179.1,3179.0,1e-08]
[1720707099122,1.74526516,3179.1,3179.0,1e-08]
[1720707099428,1.08927535,3179.1,3179.0,1e-08]
[1720707099814,0.65602252,3179.1,3179.0,1e-08]
[1720707100279,0.65602252,3179.2,3179.0,1e-08]
[1720707100415,0.65602252,3179.2,3179.1,2.2529]
[1720707100619,1.3118604,3179.5,3179.3,3.14534]
[1720707100620,0.65602252,3179.5,3179.3,3.14534]
[1720707100818,0.65602252,3179.6,3179.4,3.14518]
[1720707101061,0.65602252,3179.7,3179.3,3.14534]
[1720707101265,0.65620748,3179.8,3179.6,2.3978]
[1720707101450,0.65620748,3180.0,3179.8,3.14476]
[1720707101646,0.65620748,3180.1,3179.8,3.14476]
[1720707101857,0.65620748,3180.0,3179.8,3.14476]
[1720707103352,0.65620748,3179.9,3179.8,3.14476]
[1720707103869,0.65620748,3180.0,3179.8,3.14476]
[1720707104166,0.65620748,3179.9,3179.8,3.14476]
[1720707104366,0.65620748,3180.0,3179.9,0.12849344]
[1720707104533,0.98493796,3180.1,3179.8,3.27325711]
[1720707104723,0.6565781,3179.9,3179.8,3.14476]
[1720707105340,0.98493796,3179.9,3179.8,3.14476]
[1720707105541,0.98493796,3180.0,3179.8,3.14476]
[1720707106035,0.98493796,3179.9,3179.8,3.14476]
[1720707106245,0.98493796,3180.0,3179.8,3.14476]
[1720707106655,0.98493796,3180.0,3179.9,3.14475]
[1720707107388,0.98493796,3180.0,3179.6,2.3978]
[1720707107528,1.31325062,3179.8,3179.4,0.2]
[1720707107853,1.64156327,3179.9,3179.4,0.2]
[1720707107854,0.98558781,3179.6,3179.4,0.2]
[1720707108058,0.98558781,3179.5,3179.4,0.2]
[1720707108446,0.26944061,3179.5,3179.4,0.2]
[1720707108649,0.98556804,3179.5,3179.4,0.2]
[1720707108986,1.34568225,3179.5,3179.4,0.2]
[1720707109132,3.25485574,3179.5,3179.4,0.2]
[1720707109334,1.58136552,3179.5,3179.4,0.2]
[1720707110272,1.08908039,3179.5,3179.4,0.4]
[1720707110427,1.35600879,3179.5,3179.4,0.4]
[1720707110628,2.99827496,3179.5,3179.4,0.4]
[1720707110926,0.2669284,3179.5,3179.4,0.4]
[1720707111131,1.31475476,3179.5,3179.4,0.4]
[1720707111431,1.31475476,3179.7,3179.6,3.14504]
[1720707111632,1.5817981,3179.7,3179.6,3.14504]
[1720707111941,1.5817981,3179.7,3179.6,3.2712514]
[1720707112358,1.31475476,3179.7,3179.6,0.1262114]
[1720707112528,0.26704334,3179.7,3179.6,0.1262114]
[1720707112729,1.91048679,3179.7,3179.4,2.7718]
[1720707112957,1.58256346,3179.6,3179.4,5.91696]
[1720707113125,0.26704334,3179.5,3179.4,5.91696]
[1720707113341,1.31552012,3179.6,3179.4,2.7718]
[1720707113654,0.98663981,3179.5,3179.4,5.91696]
[1720707113856,0.98663981,3179.5,3179.4,9.0622]
[1720707114072,0.98663981,3179.5,3179.4,9.96842]
[1720707114235,0.65776588,3179.5,3179.4,6.82318]
[1720707114435,0.98663981,3179.5,3179.4,6.82326]
[1720707114629,0.98663981,3179.5,3179.4,5.91704]
[1720707115132,0.98663981,3179.5,3179.4,2.7718]
[1720707116031,0.98663981,3179.5,3179.4,5.91704]
[1720707116231,1.31552012,3179.6,3179.5,3.14514]
[1720707116464,1.58267724,3179.6,3179.5,3.14514]
[1720707116639,1.58267724,3179.6,3179.5,7.196503]
[1720707116640,0.98670474,3179.6,3179.5,7.196503]
[1720707116847,1.31552012,3179.7,3179.6,6.29008]
[1720707116848,0.65784989,3179.7,3179.6,6.29008]
[1720707117075,0.98670474,3179.8,3179.7,6.2899]
[1720707117249,1.31552012,3179.9,3179.8,3.14485]
[1720707117570,1.64455779,3180.0,3179.7,3.14495]
[1720707117729,1.31564851,3179.8,3179.4,5.91704]
[1720707117931,0.98674599,3179.6,3179.4,5.91704]
[1720707118138,0.98674599,3179.5,3179.4,5.91704]
[1720707118580,0.98674599,3179.6,3179.5,3.14514]
[1720707118745,0.98674599,3179.7,3179.5,3.14514]
[1720707118946,0.98674599,3179.6,3179.5,6.29022]
[1720707119485,1.64455779,3179.9,3179.5,6.29022]
[1720707119486,0.98674599,3179.7,3179.6,3.14504]
[1720707119933,0.93674599,3179.7,3179.6,4.28058429]
[1720707120869,1.31564851,3179.9,3179.8,3.14485]
[1720707121070,1.58077369,3179.9,3179.8,6.2897]
[1720707121281,1.58077369,3179.9,3179.8,7.15824649]
[1720707121486,0.26512518,3179.9,3179.8,7.15824649]
[1720707122065,1.90945367,3180.0,3179.8,0.12602206]
[1720707122279,1.90945367,3179.9,3179.6,3.14498]
[1720707122453,1.58042315,3179.8,3179.6,3.14498]
[1720707122802,1.58042315,3179.7,3179.6,3.14498]
[1720707123316,0.26512518,3179.7,3179.6,6.29002]
[1720707123593,1.31529797,3180.0,3179.8,3.14485]
[1720707123745,1.31529797,3179.9,3179.8,3.14485]
[1720707123944,1.31529797,3180.0,3179.9,3.14475]
[1720707124181,1.58046655,3180.0,3179.9,3.14475]
[1720707124518,5.53848,3181.0,3179.9,3.14475]
[1720707124519,1.31529797,3180.3,3180.1,5.55115]
[1720707124807,2.30206297,3181.1,3179.9,0.628967]
[1720707124808,0.6580463,3180.6,3180.5,2.4066]
[1720707124949,1.64433069,3181.1,3180.7,3.14396]
[1720707124950,0.6580463,3180.8,3180.7,3.14396]
[1720707125289,1.64433069,3181.2,3180.8,6.28772]
[1720707125290,0.6580463,3180.9,3180.8,6.28772]
[1720707125450,1.31529797,3181.3,3181.0,3.14366]
[1720707125775,1.31529797,3181.3,3180.8,0.628772]
[1720707125982,1.31529797,3181.0,3180.7,3.14389]
[1720707126147,1.31529797,3181.0,3180.5,2.4066]
[1720707126148,1.58010242,3180.9,3180.5,3.14414]
[1720707126352,1.58010242,3180.8,3180.6,3.14405]
[1720707126602,1.31529797,3181.0,3180.7,3.14393]
[1720707126884,1.58010987,3181.0,3180.7,3.14393]
[1720707127084,1.31529797,3181.0,3180.7,3.14393]
[1720707127386,0.65753663,3180.8,3180.7,3.14393]
[1720707127691,0.65753663,3180.9,3180.7,6.916597]
[1720707127915,0.65753663,3180.9,3180.8,6.28772]
[1720707128084,0.65753663,3181.2,3181.1,6.28712]
[1720707128548,1.64428035,3181.7,3181.1,3.14356]
[1720707128549,0.65753663,3181.4,3181.1,3.14356]
[1720707128744,0.65753663,3181.3,3180.9,3.14375]
[1720707128963,0.65753663,3181.2,3180.9,3.14375]
[1720707129562,0.65753663,3181.2,3180.9,4.1952527]
[1720707129782,0.65753663,3181.3,3181.2,3.14346]
[1720707130095,0.65753663,3181.4,3181.2,3.14343]
[1720707130244,0.65753663,3181.4,3181.2,3.14338]
[1720707130697,0.65753663,3181.5,3181.2,3.14338]
[1720707131184,0.65753663,3181.4,3181.0,3.14358]
[1720707131401,0.65753663,3181.5,3181.0,3.14358]
[1720707131965,0.65753663,3181.4,3180.9,3.14367]
[1720707132499,3.14369,3181.0,3180.1,2.2864]
[1720707132794,3.14369,3181.0,3180.1,3.14455]
[1720707132795,0.65585993,3180.5,3180.1,3.14455]
[1720707132993,0.60585993,3180.5,3180.1,3.14455]
[1720707133294,0.9837899,3180.6,3179.9,3.14468]
[1720707133455,0.9837899,3180.4,3179.6,8.59338]
[1720707133652,0.9837899,3180.3,3179.7,3.1449]
[1720707134172,0.9837899,3180.4,3179.7,3.1449]
[1720707134498,0.9837899,3180.4,3179.8,0.12123316]
[1720707134900,0.9837899,3180.3,3179.8,0.12123316]
[1720707135114,4.67230518,3180.2,3179.6,3.14]
[1720707135408,0.9837899,3179.8,3179.6,3.14]
[1720707135895,0.9837899,3179.7,3179.4,0.4]
[1720707137369,0.9837899,3179.7,3179.4,0.39879382]
[1720707137582,4.1289199,3179.6,3179.4,0.39879382]
[1720707137768,6.557342,3179.5,3179.4,0.39879382]
[1720707137968,13.89894205,3179.5,3179.4,0.30056459]
[1720707138167,11.93093771,3179.5,3179.4,0.30056459]
[1720707138378,10.20282642,3179.5,3179.4,0.30056459]
[1720707138660,9.54528678,3179.5,3179.4,0.30056459]
[1720707139320,10.09528678,3179.5,3179.4,0.30056459]
[1720707139597,13.24060283,3179.5,3179.4,0.30056459]
[1720707139806,12.15116641,3179.5,3179.4,0.30056459]
[1720707139987,13.24062228,3179.5,3179.4,0.30056459]
[1720707140464,13.24062228,3179.5,3179.0,1e-08]
[1720707140465,6.29108,3179.1,3179.0,1e-08]
[1720707140665,8.27670587,3179.1,3179.0,1e-08]
[1720707140913,8.82670587,3179.1,3179.0,1e-08]
[1720707141058,11.97224587,3179.1,3179.0,1e-08]
[1720707141261,12.55737401,3179.1,3179.0,1e-08]
[1720707141505,12.55737401,3179.1,3178.2,0.00081044]
[1720707141506,3.14633,3178.3,3178.2,0.00081044]
[1720707141672,4.12817752,3178.4,3178.2,0.00081044]
[1720707141858,3.14623,3178.4,3178.2,0.00081044]
[1720707142066,3.14633,3178.3,3178.2,0.00081044]
[1720707142479,3.14633,3178.3,3178.2,0.12340019]
[1720707142676,4.12810752,3178.5,3178.2,0.00081044]
[1720707143013,3.14633,3178.3,3178.2,0.00081044]
[1720707143372,3.80069344,3178.3,3178.2,0.00081044]
[1720707143572,3.14633,3178.3,3178.2,0.00081044]
[1720707144108,3.80040344,3178.6,3178.2,0.00081044]
[1720707144403,3.80040344,3178.6,3178.2,0.12340019]
[1720707144807,3.14604,3178.6,3178.2,0.12340019]
[1720707145117,3.14604,3178.6,3178.2,0.00081044]
[1720707145118,4.59323854,3178.6,3178.2,0.00081044]
[1720707145870,1.44635359,3178.6,3178.2,0.00081044]
[1720707146206,3.14633,3178.3,3178.2,0.00081044]
[1720707147284,3.14617,3178.5,3178.2,0.12340019]
[1720707147479,3.14617,3178.5,3178.2,0.00081044]
[1720707147702,0.98027773,3178.8,3178.2,0.00081044]
[1720707147703,3.14633,3178.3,3178.2,0.00081044]
[1720707147917,3.460963,3178.3,3178.2,0.00081044]
[1720707148798,6.607293,3178.3,3178.2,0.00081044]
[1720707150092,7.26015145,3178.3,3178.2,0.00081044]
[1720707150291,6.607293,3178.3,3178.2,0.00081044]
[1720707151295,12.059223,3178.3,3178.2,0.00081044]
[1720707151503,12.059223,3178.3,3178.2,1.044e-05]
[1720707151504,12.609223,3178.3,3178.2,1.044e-05]
[1720707151687,13.26150583,3178.3,3178.2,1.044e-05]
[1720707151912,13.26150583,3178.3,3176.8,2.3077]
[1720707151913,13.58851068,3178.3,3176.8,2.3077]
[1720707152122,3.1473,3177.4,3176.8,2.3077]
[1720707152285,3.14709,3177.6,3176.8,2.3077]
[1720707152484,3.14712,3177.5,3176.8,2.3077]
[1720707152724,3.14713,3177.5,3176.9,0.11901676]
[1720707153299,3.14671,3178.0,3177.1,3.14751]
[1720707153495,3.14671,3178.0,3177.2,0.43381417]
[1720707153802,0.314633,3178.3,3177.2,0.43381417]
[1720707154022,3.14679,3177.9,3177.2,0.43381417]
[1720707154196,3.14679,3177.9,3177.2,0.11906317]
[1720707154391,3.14668,3178.0,3177.2,0.11906317]
[1720707154593,0.314633,3178.3,3176.8,2.3077]
[1720707154835,3.14649,3178.2,3177.3,0.11905949]
[1720707154992,6.29335,3178.0,3177.1,3.14744]
[1720707155326,3.14676,3177.9,3177.1,3.14744]
[1720707155544,3.14654,3178.1,3177.2,0.11906317]
[1720707155859,3.14712,3177.5,3176.8,2.3077]
[1720707156000,3.14699,3177.7,3176.8,6.00114758]
[1720707156194,3.14704,3177.6,3176.8,6.00114758]
[1720707156435,3.14713,3177.5,3176.9,0.11904423]
[1720707156814,3.14724,3177.4,3176.9,0.11904423]
[1720707157011,3.14743,3177.2,3176.9,0.11904423]
[1720707157503,3.14724,3177.4,3176.9,0.11904423]
[1720707157705,3.14749,3177.2,3176.9,0.11904423]
[1720707158697,6.29498,3177.2,3176.9,0.11904423]
[1720707158892,3.14749,3177.2,3176.9,0.11904423]
[1720707159119,3.14749,3177.2,3176.7,0.00082575]
[1720707159322,3.14753,3177.1,3176.8,0.1190479]
[1720707160341,3.14772,3176.9,3176.8,0.1190479]
[1720707160698,6.29544,3176.9,3176.8,0.1190479]
[1720707161225,6.29564,3176.8,3176.7,0.00082575]
[1720707163942,3.14782,3176.8,3176.7,0.00082575]
[1720707164781,3.14782,3176.8,3176.7,0.11614206]
[1720707164958,3.777375,3176.8,3176.7,0.00082575]
[1720707165166,6.925195,3176.8,3176.7,0.00082575]
[1720707166278,11.16334549,3176.8,3176.7,2.575e-05]
[1720707166486,11.71334549,3176.8,3176.7,2.575e-05]
[1720707167481,3.14871,3175.9,3175.8,0.1156387]
[1720707167804,9.7623,3175.3,3175.2,0.00081079]
[1720707167939,3.1503,3174.3,3173.7,0.00081783]
[1720707168173,3.14978,3174.9,3173.7,0.00081783]
[1720707168174,3.15079,3173.9,3173.8,0.10312255]
[1720707168707,3.15031,3174.3,3173.7,0.00081783]
[1720707168983,1.921,3174.6,3173.8,0.09969315]
[1720707169325,0.1921,3174.5,3173.8,0.09969315]
[1720707169615,0.1921,3174.5,3173.9,0.09968947]
[1720707169906,3.1505,3174.1,3173.7,0.00081783]
[1720707170218,3.15069,3173.9,3173.8,0.09969315]
[1720707170373,3.1506,3174.0,3173.8,0.09969315]
[1720707170574,3.15051,3174.1,3173.7,0.00081783]
[1720707170773,3.15051,3174.1,3173.9,0.09968947]
[1720707170774,3.15059,3174.0,3173.9,0.09968947]
[1720707171081,3.15069,3173.9,3173.8,0.09969315]
[1720707171285,6.30158,3173.8,3173.7,0.00081783]
[1720707171520,10.00237,3173.8,3173.7,0.00081783]
[1720707172088,10.00237,3173.8,3171.4,3.15315]
[1720707172089,3.15141,3173.2,3171.4,3.15315]
[1720707172291,3.15141,3173.2,3171.3,2.3651]
[1720707172292,3.15181,3172.8,3171.7,3.15288]
[1720707172473,3.15148,3173.2,3172.1,3.15241]
[1720707172674,3.1516,3173.0,3172.1,3.15241]
[1720707172875,3.15148,3173.2,3172.1,3.15241]
[1720707173218,3.1515,3173.1,3172.1,3.15241]
[1720707173524,3.15159,3173.0,3172.2,0.32154526]
[1720707173810,3.15187,3172.8,3171.6,2.3564]
[1720707173973,5.71799,3173.6,3171.6,2.3564]
[1720707174170,3.15232,3172.3,3171.6,2.3564]
[1720707174426,5.71799,3173.6,3171.6,2.3564]
[1720707174427,3.15225,3172.4,3171.6,2.3564]
[1720707174662,3.15225,3172.4,3171.6,2.907351]
[1720707175129,3.15202,3172.6,3171.6,2.907351]
[1720707175338,3.15209,3172.5,3171.6,2.907351]
[1720707175831,3.15219,3172.4,3171.6,2.907351]
[1720707176031,3.1523,3172.3,3171.6,2.907351]
[1720707176232,3.1523,3172.3,3172.2,0.00082713]
[1720707176429,6.935108,3172.3,3172.2,0.00082713]
[1720707176739,6.935108,3172.3,3172.2,0.0946809]
[1720707177065,3.782748,3172.3,3172.2,0.00082713]
[1720707177275,3.31116029,3173.6,3172.2,0.00082713]
[1720707177276,0.3144,3173.2,3172.3,2.2554]
[1720707177477,3.15109,3173.6,3172.5,3.15198]
[1720707177619,3.15141,3173.2,3172.4,0.09528976]
[1720707177820,3.15177,3172.9,3172.4,0.09528976]
[1720707178020,3.15181,3172.8,3172.4,0.09528976]
[1720707178262,0.630268,3173.2,3172.4,0.09528976]
[1720707178263,3.15208,3172.5,3172.4,0.09528976]
[1720707178576,3.15227,3172.4,3172.2,0.00082713]
[1720707178719,3.15188,3172.8,3172.2,0.00082713]
[1720707179230,3.15128,3173.4,3172.5,3.15207]
[1720707179433,3.15109,3173.5,3172.6,0.315207]
[1720707179642,3.15109,3173.5,3172.6,0.40777433]
[1720707180369,3.15109,3173.5,3172.6,3.55975433]
[1720707180868,3.1512,3173.4,3172.6,3.55975433]
[1720707181076,3.1512,3173.4,3172.6,0.09256733]
[1720707181289,2.4465,3174.2,3172.6,0.09256733]
[1720707181290,0.3144,3174.2,3172.8,3.15174]
[1720707181429,3.15109,3173.5,3172.6,3.24448733]
[1720707181629,3.15073,3173.9,3173.0,3.15155]
[1720707181830,3.15073,3173.9,3172.6,3.47635873]
[1720707181831,3.15087,3173.8,3172.6,3.47635873]
[1720707182030,2.567,3174.4,3173.1,0.0925489]
[1720707182361,2.3260269,3174.7,3172.2,2.4921]
[1720707182362,3.15179,3172.8,3172.2,2.4921]
[1720707182565,3.15201,3172.6,3171.8,6.30277]
[1720707182852,3.15179,3172.8,3172.3,0.09243118]
[1720707183168,3.15163,3173.0,3172.4,0.09243498]
[1720707183373,3.15177,3172.9,3172.4,0.09243498]
[1720707183676,3.15177,3172.9,3172.0,3.15256]
[1720707183838,3.15177,3172.9,3172.5,0.09243129]
[1720707184043,0.630305,3173.0,3172.3,3.15227]
[1720707184242,0.630305,3173.0,3172.0,0.06304844]
[1720707184243,3.15092,3173.7,3172.7,3.15182]
[1720707184429,3.15064,3174.0,3172.7,3.15182]
[1720707184632,3.15085,3173.8,3172.9,3.15169]
[1720707184978,3.15021,3174.4,3173.0,3.24411264]
[1720707184979,3.15062,3174.0,3173.0,3.24411264]
[1720707185267,3.15021,3174.4,3173.0,3.24411264]
[1720707185268,3.15085,3173.8,3173.0,0.09252264]
[1720707185486,3.15125,3173.4,3173.0,0.09252264]
[1720707185632,0.315085,3173.7,3172.5,2.3437]
[1720707185982,3.15145,3173.2,3172.5,2.3437]
[1720707186138,3.15162,3173.0,3172.6,0.09246253]
[1720707186491,3.15171,3172.9,3172.6,0.09246253]
[1720707186802,3.782183,3172.8,3172.1,7.29]
[1720707186982,6.934033,3172.8,3172.7,0.09243889]
[1720707187135,3.15217,3172.5,3171.6,3.1529]
[1720707187331,3.15217,3172.5,3171.8,3.15276]
[1720707187547,3.15217,3172.5,3171.9,0.09257567]
[1720707187752,3.15217,3172.5,3170.8,3.15368]
[1720707187753,3.467447,3172.4,3170.8,3.15368]
[1720707187971,3.467447,3172.4,3170.9,3.24627255]
[1720707187972,3.15288,3171.8,3170.9,3.24627255]
[1720707188271,3.1532,3171.4,3170.9,0.09261255]
[1720707188441,3.15329,3171.3,3170.9,0.09261255]
[1720707188630,3.15339,3171.2,3170.3,3.15425]
[1720707188832,3.15339,3171.2,3171.0,0.08976432]
[1720707189031,3.15339,3171.2,3170.4,3.15417]
[1720707189238,5.517447,3172.4,3170.9,3.15365]
[1720707189239,3.15285,3171.8,3170.9,3.15365]
[1720707189481,3.1525,3172.1,3170.9,0.06306828]
[1720707189633,3.1525,3172.1,3171.3,3.15321]
[1720707189835,3.1524,3172.2,3171.4,3.15316]
[1720707190036,3.15184,3172.8,3171.4,0.08992435]
[1720707190231,3.15156,3173.1,3171.4,0.08992435]
[1720707190232,3.15294,3171.7,3171.4,0.08992435]
[1720707190459,3.15308,3171.5,3171.4,0.08992435]
[1720707190664,6.30616,3171.5,3170.4,3.15416]
[1720707190868,3.15318,3171.4,3170.2,3.15437]
[1720707191054,3.15318,3171.4,3170.7,0.08989024]
[1720707191264,3.15309,3171.5,3170.7,0.08989024]
[1720707191440,3.8152194,3171.5,3170.7,0.08989024]
[1720707191642,3.15328,3171.3,3170.7,0.08989024]
[1720707191947,3.15338,3171.2,3170.7,0.08989024]
[1720707192166,3.15338,3171.2,3170.1,3.15445]
[1720707192345,3.15338,3171.2,3170.0,2.4029]
[1720707192346,3.15354,3171.1,3170.8,0.08690788]
[1720707192550,0.630692,3171.0,3170.0,2.4029]
[1720707192732,0.630692,3171.0,3170.1,0.08693371]
[1720707192733,3.15373,3170.9,3170.1,0.08693371]
[1720707192932,0.630692,3171.0,3170.1,3.24137371]
[1720707193163,3.15345,3171.2,3170.2,3.15436]
[1720707193334,3.15345,3171.2,3170.3,0.08692633]
[1720707193532,3.15349,3171.1,3170.3,0.08692633]
[1720707193846,3.1536,3171.0,3170.1,3.15447]
[1720707194046,3.1536,3171.0,3170.4,0.08692264]
[1720707194243,3.15322,3171.4,3170.4,0.32412826]
[1720707194443,3.15298,3171.6,3170.5,3.24092895]
[1720707194652,3.1532,3171.4,3170.5,3.24092895]
[1720707195163,3.1532,3171.4,3170.5,0.08691895]
[1720707195376,3.15371,3170.9,3170.0,2.4029]
[1720707195685,3.469161,3170.8,3170.6,0.08422642]
[1720707195836,3.469161,3170.8,3170.0,2.4029]
[1720707196041,3.469161,3170.8,3170.7,0.08422273]
[1720707196232,3.469161,3170.8,3170.0,2.4029]
[1720707196586,3.15405,3170.6,3170.1,0.08424487]
[1720707196781,3.15397,3170.7,3170.1,0.08424487]
[1720707197284,3.15397,3170.7,3169.5,5.2699387]
[1720707197285,3.15437,3170.2,3169.5,3.9999387]
[1720707197460,3.15447,3170.1,3169.5,3.9999387]
[1720707197779,3.15447,3170.1,3169.5,2.4999387]
[1720707197946,3.785534,3170.0,3169.5,0.0656387]
[1720707198838,3.15431,3170.3,3169.5,0.0656387]
[1720707199035,3.15431,3170.3,3169.6,3.1549]
[1720707199237,3.15408,3170.5,3169.6,3.1549]
[1720707199476,3.15433,3170.3,3169.5,0.0656387]
[1720707199687,6.30994,3169.6,3169.5,0.0656387]
[1720707199838,6.940934,3169.6,3169.5,0.0656387]
[1720707200034,3.785964,3169.6,3169.5,0.0656387]
[1720707200242,6.940934,3169.6,3169.5,0.0656387]
[1720707200470,7.490934,3169.6,3169.5,0.0656387]
[1720707200743,3.15497,3169.6,3169.5,0.0656387]
[1720707201242,3.15464,3170.0,3169.5,0.0656387]
[1720707201485,3.15434,3170.3,3169.5,0.0656387]
[1720707201645,0.315371,3170.8,3169.6,3.1549]
[1720707201646,3.15404,3170.6,3169.6,3.1549]
[1720707201842,3.1539,3170.7,3169.7,3.1548]
[1720707202044,3.15419,3170.4,3169.5,0.0656387]
[1720707202396,3.15444,3170.2,3169.5,0.0656387]
[1720707202743,3.1541,3170.5,3169.5,3.2206187]
[1720707202744,3.15414,3170.5,3169.5,3.2206187]
[1720707202940,0.315414,3170.4,3169.5,3.2206187]
[1720707203187,3.15454,3170.1,3169.5,0.0656387]
[1720707203489,3.15459,3170.0,3169.5,0.0656387]
[1720707203692,3.15476,3169.9,3169.5,0.0656387]
[1720707204181,3.15454,3170.1,3169.5,0.0656387]
[1720707204182,3.15477,3169.8,3169.5,0.0656387]
[1720707204381,3.15496,3169.7,3169.5,0.0656387]
[1720707204587,3.15497,3169.6,3169.5,0.0656387]
[1720707204804,6.30994,3169.6,3169.5,0.0656387]
[1720707205954,3.15559,3169.0,3167.8,3.15674]
[1720707206157,3.15559,3169.0,3167.6,7.29]
[1720707206158,3.15581,3168.8,3167.9,0.06912412]
[1720707206344,3.786967,3168.8,3167.9,3.15662]
[1720707206583,3.15593,3168.7,3168.0,0.06912042]
[1720707206758,3.15625,3168.4,3168.0,0.06912042]
[1720707206974,3.15612,3168.5,3167.5,4.1591]
[1720707207280,0.631157,3168.8,3168.1,0.06911673]
[1720707207281,3.15636,3168.2,3168.1,0.06911673]
[1720707207460,3.15656,3168.0,3167.5,2.6591]
[1720707207645,3.15668,3167.9,3167.5,0.275]
[1720707208159,3.1567,3167.9,3167.5,0.275]
[1720707208550,3.472036,3168.2,3167.5,0.275]
[1720707209092,7.22255,3169.1,3167.5,0.275]
[1720707209093,3.15565,3169.0,3167.5,0.275]
[1720707209303,3.15614,3168.5,3167.5,0.275]
[1720707209447,3.15598,3168.6,3167.8,2.3244]
[1720707209641,3.15606,3168.5,3167.8,2.3244]
[1720707209845,3.1557,3168.9,3167.9,3.2269041]
[1720707210040,3.15588,3168.7,3168.0,3.15655]
[1720707210272,3.1557,3168.9,3168.1,3.15644]
[1720707210273,3.15567,3168.9,3168.1,3.15644]
[1720707210486,3.15553,3169.1,3168.1,3.15644]
[1720707210685,3.15532,3169.3,3168.0,3.77489541]
[1720707210686,3.15532,3169.3,3168.2,3.22654077]
[1720707210981,3.15559,3169.0,3168.2,0.07020077]
[1720707211183,3.15626,3168.3,3168.2,0.07020077]
[1720707211384,3.15626,3168.3,3167.5,0.275]
[1720707211385,3.15647,3168.1,3167.5,0.275]